Workbook

Sheet Net
A1: Ay | B1: Net | C1: Brüt Ücret | D1: SGK Devir | E1: SGK MATRAH | F1: SSK İşçi | G1: SSK İşçi İşsizlik | H1: GV Matrahı | I1: Kümülatif GV Matrahı | J1: GV | K1: Damga Vergisi | L1: İşveren Primi | M1: İşveren İşsizlik Primi | N1: Toplam Maliyet
A2: Ocak | B2: 4253.4 | C2: =ROUND(Brut(B2,I2,IFERROR(D1*1,0),A2),1) -> 5004 | D2: =SGKDevirBul(C2,IFERROR(C1*1,0)) -> 0 | E2: =IF(C2+(IF(B2="Ocak",IFERROR(D1*0,0),IFERROR(D1*1,0)))>SGKTAVAN,SGKTAVAN,C2+(IF(B2="Ocak",IFERROR(D1*0,0),IFERROR(D1*1,0)))) -> 5004 | F2: =E2*14/100 -> 700.56 | G2: =E2*1/100 -> 50.04 | H2: =C2-(F2+G2) -> 4253.4 | I2: 0 | J2: =gv(I2,H2,A2) -> 0 | K2: =dv(C2) -> 0 | L2: =E2*20.5/100 -> 1025.82 | M2: =E2*2/100 -> 100.08 | N2: =C2+L2+M2 -> 6129.9
A3: Şubat | B3: 4253.4 | C3: 5004 | D3: 0 | E3: 5004 | F3: =E3*14/100 -> 700.56 | G3: =E3*1/100 -> 50.04 | H3: =C3-(F3+G3) -> 4253.4 | I3: =H2+I2 -> 4253.4 | J3: =gv(I3,H3,A3) -> 0 | K3: =dv(C3) -> 0 | L3: 1025.82 | M3: 100.08 | N3: 6129.9
A4: Mart | B4: 4253.4 | C4: 5004 | D4: 0 | E4: 5004 | F4: 700.56 | G4: 50.04 | H4: 4253.4 | I4: =H3+I3 -> 8506.8 | J4: 0 | K4: 0 | L4: 1025.82 | M4: 100.08 | N4: 6129.9
A5: Nisan | B5: 4253.4 | C5: 5004 | D5: 0 | E5: 5004 | F5: 700.56 | G5: 50.04 | H5: 4253.4 | I5: 12760.2 | J5: 0 | K5: 0 | L5: 1025.82 | M5: 100.08 | N5: 6129.9
A6: Mayıs | B6: 4253.4 | C6: 5004 | D6: 0 | E6: 5004 | F6: 700.56 | G6: 50.04 | H6: 4253.4 | I6: 17013.6 | J6: 0 | K6: 0 | L6: 1025.82 | M6: 100.08 | N6: 6129.9
A7: Haziran | B7: 4253.4 | C7: 5004 | D7: 0 | E7: 5004 | F7: 700.56 | G7: 50.04 | H7: 4253.4 | I7: 21267 | J7: 0 | K7: 0 | L7: 1025.82 | M7: 100.08 | N7: 6129.9
A8: Temmuz | B8: 4253.4 | C8: 5004 | D8: 0 | E8: 5004 | F8: 700.56 | G8: 50.04 | H8: 4253.4 | I8: 25520.4 | J8: 0 | K8: 0 | L8: 1025.82 | M8: 100.08 | N8: 6129.9
A9: Ağustos | B9: 4253.4 | C9: 5004 | D9: 0 | E9: 5004 | F9: 700.56 | G9: 50.04 | H9: 4253.4 | I9: 29773.8 | J9: 1.136868377e-13 | K9: 0 | L9: 1025.82 | M9: 100.08 | N9: 6129.9
A10: Eylül | B10: 4253.4 | C10: 5004 | D10: 0 | E10: 5004 | F10: 700.56 | G10: 50.04 | H10: 4253.4 | I10: 34027.2 | J10: 0 | K10: 0 | L10: 1025.82 | M10: 100.08 | N10: 6129.9
A11: Ekim | B11: 4253.4 | C11: 5004 | D11: 0 | E11: 5004 | F11: 700.56 | G11: 50.04 | H11: 4253.4 | I11: 38280.6 | J11: 0 | K11: 0 | L11: 1025.82 | M11: 100.08 | N11: 6129.9
A12: Kasım | B12: 4253.4 | C12: 5004 | D12: 0 | E12: 5004 | F12: 700.56 | G12: 50.04 | H12: 4253.4 | I12: 42534 | J12: 0 | K12: 0 | L12: 1025.82 | M12: 100.08 | N12: 6129.9
A13: Aralık | B13: 4253.4 | C13: 5004 | D13: 0 | E13: 5004 | F13: 700.56 | G13: 50.04 | H13: 4253.4 | I13: 46787.4 | J13: 0 | K13: 0 | L13: 1025.82 | M13: 100.08 | N13: 6129.9
A14: Toplam | B14: =SUM(B2:B13) -> 51040.8 | C14: =SUM(C2:C13) -> 60048 | F14: =SUM(F2:F13) -> 8406.72 | G14: =SUM(G2:G13) -> 600.48 | I14: =H13+I13 -> 51040.8 | J14: =SUM(J2:J13) -> 1.136868377e-13 | K14: =SUM(K2:K13) -> 0 | L14: =SUM(L2:L13) -> 12309.84 | M14: =SUM(M2:M13) -> 1200.96 | N14: =SUM(N2:N13) -> 73558.8

Sheet Parametre
A1: Vergi Dilimler Aralıkları | C1: Vergi Oranı
A2: 0 | B2: 32000 | C2: 15
A3: 32000 | B3: 70000 | C3: 20
A4: 70000 | B4: 250000 | C4: 27
A5: 250000 | B5: 880000 | C5: 35
A6: 880000 | C6: 40
A8: Asgari Ücret | B8: 5004
A9: SGK Tavanı | B9: 37530
A10: Damga Vergisi Matrahı | B10: 0.00759
